Cogmind - Beta 15 @@@ ROGUE MODE // 2025.07.12 @ 08:13:44 Player: LameThyst Result: Destroyed by D-53 Grenadier with Mini Grenade Launcher Performance ------------- Evolutions (0) 0 Regions Visited (2) 400 Robots Destroyed (23) 115 Value Destroyed (423) 423 Prototype IDs (2) 40 Alien Tech Used (0) 0 Bonus (0) 0 TOTAL SCORE: 978 Bonus ------- None Cogmind --------- Core Integrity 0/250 Matter 300/300 Energy 100/100 System Corruption 0% Temperature Cool (0) Movement Core (200) Ox3 Location -10/Mines Parts ------- > --- POWER (1) -------- (None) > --- PROPULSION (2) --- (None) > --- UTILITY (2) ------ Medium Storage Unit > --- WEAPON (2) ------- (None) > --- INVENTORY (10) --- Ion Engine Ion Engine Light Treads Light Treads Compact Wheel Improved Heat Sink High-capacity Matter Pod (200) Core Shielding Rocket Launcher Mining Laser Peak State ------------ > --- POWER ------------ Light Nuclear Core > --- PROPULSION ------- Light Treads Light Treads > --- UTILITY ---------- Medium Storage Unit Seismic Detector > --- WEAPON ----------- Medium Laser Assault Rifle > --- INVENTORY -------- Ion Engine Ion Engine Light Treads Light Treads Compact Wheel Improved Heat Sink High-capacity Matter Pod Core Shielding Grenade Launcher Mining Laser [Rating: 10] Favorites ----------- Power Light Ion Engine Engine Light Ion Engine Power Core Light Nuclear Core Propulsion Light Treads Treads Light Treads Leg Aluminum Leg Utility Small Storage Unit Device Seismic Detector Storage Small Storage Unit Protection Core Shielding Weapon Assault Rifle Energy Gun Medium Laser Ballistic Gun Assault Rifle Launcher Grenade Launcher Build | -11 -10 -10 ------- Run | Yrd Mat Min Slots Evolved . | . . . Power . | . . . Propulsion . | . . . Utility . | . . . Weapon . | . . . Parts Attached 21 | 8 11 2 Power 5 | 1 3 1 Engine 4 | 1 3 . Core 1 | . . 1 Reactor . | . . . Propulsion 8 | 2 6 . Treads 6 | . 6 . Leg 2 | 2 . . Wheel . | . . . Hover . | . . . Flight . | . . . Utility 4 | 2 1 1 Device 1 | 1 . . Storage 2 | 1 . 1 Processor . | . . . Hackware . | . . . Protection 1 | . 1 . Artifact . | . . . Weapon 4 | 3 1 . Energy Gun 2 | 2 . . Energy Cannon . | . . . Ballistic Gun 1 | 1 . . Ballistic Cannon . | . . . Launcher 1 | . 1 . Special Weapon . | . . . Impact Weapon . | . . . Slashing Weapon . | . . . Piercing Weapon . | . . . Special Melee Weapon . | . . . Unidentified Prototypes . | . . . Parts Lost 6 | . . 6 Power 1 | . . 1 Propulsion 2 | . . 2 Utility 1 | . . 1 Weapon 2 | . . 2 Highest Loss Streak 6 | . . 6 To Critical Strikes . | . . . Average Backups 7 | 4 7 9 Power 1 | . 1 1 Propulsion 2 | 2 2 3 Utility 2 | . 2 2 Weapon 2 | . 2 2 Tool/Special . | . . . Unused Backups 13 | . 4 9 Power 2 | . 1 1 Propulsion 4 | . 1 3 Utility 5 | . 2 3 Weapon 2 | . . 2 Tool/Special . | . . . Average Slot Usage (%) 98 | . 99 96 Engine 11 | . 14 3 Core 2 | . . 10 Treads 26 | . 26 26 Device 10 | . 10 12 Storage 14 | . 14 14 Protection 2 | . 3 . Energy Gun 13 | . 13 12 Ballistic Gun 13 | . 13 13 Peak Build Rating 10 | 7 8 10 Average Rating 7 | 5 7 9 On Entrance 5 | . 7 8 Naked Turns . | . . . Heaviest Build 21 | 13 16 21 Greatest Support 40 | 20 40 40 Greatest Overweight (x) 5 | 1 . 5 Average Overweight (x) . | . . . Largest Inventory Capacity 10 | 8 8 10 Average Capacity 8 | 7 8 9 Most Carried 10 | 7 8 10 Average Carried 7 | 4 7 9 Final Capacity 10 | 8 8 10 Final Carried 10 | 7 8 10 Class Distribution -------------------- 100% | Mutant Dominant Class ---------------- Mutant | -10/Materials Mutant | -10/Mines Resources | -11 -10 -10 ----------- Run | Yrd Mat Min Matter Collected 627 | 292 267 68 Remotely . | . . . Salvage Created 732 | 90 560 82 Parts 46 | 5 35 6 Haulers Intercepted 2 | . 2 . Recyclers Shooed . | . . . Parts Field Recycled . | . . . Retrieved Matter . | . . . Parts Self-Destructed . | . . . Prevented . | . . . Kills | -11 -10 -10 ------- Run | Yrd Mat Min Combat Hostiles Destroyed 14 | . 12 2 Guns 14 | . 12 2 Classes Destroyed 7 | 2 5 . Worker 3 | . 3 . Tunneler 1 | 1 . . Hauler 2 | . 2 . Recycler 1 | 1 . . Watcher 2 | . 2 . Swarmer 6 | . 6 . Grunt 8 | . 6 2 Best Kill Streak 9 | 2 9 1 Combat Bots Only 6 | . 6 1 Max Kills in Single Turn 2 | 1 2 1 Gunslinging . | . . . Exploded . | . . . Melee . | . . . Uniques/NPCs Destroyed . | . . . Combat | -11 -10 -10 -------- Run | Yrd Mat Min Hostile Shots Fired 69 | . 43 26 Missed 14 | . 10 4 Hits 55 | . 33 22 Projectile 55 | . 33 22 AOE 19 | . . 19 Damage Taken 1196 | . 364 832 Core 264 | . 54 210 Absorbed by Shields . | . . . Redirected to Shielding 7 | . 7 . Regen/Repaired (Parts) 35 | . 35 . Core Remaining (%) 100 | 100 . . Volleys Fired 50 | 4 38 8 Largest 2 | 2 2 2 Hottest 70 | 70 70 70 Shots Fired 100 | 8 76 16 Gun 100 | 8 76 16 Cannon . | . . . Launcher . | . . . Special . | . . . Kinetic 50 | 4 38 8 Thermal 50 | 4 38 8 Explosive . | . . . Electromagnetic . | . . . Robot Hit Streak 7 | 4 7 5 Robot Miss Streak 4 | 1 2 4 Penetration Max . | . . . Secondary Targets 2 | . 2 . Max Gunslinging Chain 1 | . 1 . Shots Hit Robots 60 | 5 48 7 Core Hits 38 | 3 30 5 Critical Kills . | . . . Critical Parts Destroyed . | . . . Critical Strikes 2 | . 2 . Burn 2 | . 2 . Melee Attacks . | . . . Impact . | . . . Slashing . | . . . Piercing . | . . . Sneak Attacks . | . . . Combat Hostiles . | . . . Follow-up Attacks . | . . . Damage Inflicted 814 | 62 654 98 Guns 814 | 62 654 98 Cannons . | . . . Explosions . | . . . Melee . | . . . Ramming . | . . . Kinetic 362 | 24 302 36 Thermal 452 | 38 352 62 Explosive . | . . . Electromagnetic . | . . . Impact . | . . . Slashing . | . . . Piercing . | . . . Highest Corruption . | . . . Average Corruption . | . . . Corruption Purged . | . . . Corruption Blocked . | . . . Overload Shots . | . . . Overflow Damage . | . . . Projectiles . | . . . Explosions . | . . . Melee . | . . . Knockbacks . | . . . Impact . | . . . Kinetic . | . . . Secondary . | . . . Self-Inflicted Damage . | . . . Shots . | . . . Rammed . | . . . Targets Rammed . | . . . Kicked . | . . . Crushed . | . . . Highest Temperature 122 | 27 122 54 Average Temperature 34 | 12 39 24 Received Heat Transfer 189 | . 150 39 Siege Activations . | . . . Martial Activations . | . . . Shielding Activations . | . . . Robots Disrupted . | . . . Combat Hostiles . | . . . Robots Corrupted . | . . . Combat Hostiles . | . . . Parts Fried . | . . . Impact Corruptions . | . . . Robots Melted . | . . . Combat Hostiles . | . . . Parts Melted 1 | . 1 . Heat Transferred 1480 | 111 1184 185 Parts Sabotaged . | . . . Parts Stolen . | . . . Parts Stripped . | . . . Power Chain Reactions . | . . . Alert | -11 -10 -10 ------- Run | Yrd Mat Min Maximum Alert Level . | . . . Low Security (%) 100 | 100 100 100 Level 1 . | . . . Level 2 . | . . . Level 3 . | . . . Level 4 . | . . . Level 5 . | . . . High Security . | . . . Max Security . | . . . Peak Influence 172 | 5 172 40 Initial 6 | . . 6 Average 29 | 1 39 6 Influence Increases 445 | 10 385 50 Destroy 0b10 Robot/C 280 | . 240 40 Destroy 0b10 Robot/NC 45 | 10 35 . Destroy Leader 68 | . 58 10 Successful Hack 21 | . 21 . Destroy Structure 1 | . 1 . Partial Spotted 15 | . 15 . Lose Combat Pursuer 15 | . 15 . Influence Decreases 445 | 10 369 66 Entered New Map 10 | . . 10 Time Decay 319 | 10 253 56 Purge Threat 116 | . 116 . Squads Dispatched 1 | . 1 . Investigation 1 | . 1 . Extermination . | . . . Reinforcement . | . . . Assault . | . . . Garrison . | . . . Intercept . | . . . Searches Triggered . | . . . Construction Impeded . | . . . Haulers Reinforced . | . . . Active Scanning Responses . | . . . Cargo Convoy Interrupts . | . . . Stealth | -11 -10 -10 --------- Run | Yrd Mat Min Distress Signals 5 | . 5 . Communications Jammed . | . . . Distress Signals . | . . . Times Spotted 34 | . 20 14 Peak Tracking Total 15 | . 4 15 Tactical Retreats 1 | . 1 . Traps | -11 -10 -10 ------- Run | Yrd Mat Min Traps Triggered 1 | . 1 . Indirectly . | . . . Trap Hack Attempts . | . . . Triggered . | . . . Disarmed . | . . . Reprogrammed . | . . . Reused . | . . . Traps Extracted . | . . . Installed . | . . . Triggered . | . . . Machines | -11 -10 -10 ---------- Run | Yrd Mat Min Machines Disabled 1 | . 1 . Max in Single Turn 1 | . 1 . Machines Repaired . | . . . Machines Dismantled . | . . . Machines Sabotaged . | . . . Overloaded Fab Kills . | . . . Hacking | -11 -10 -10 --------- Run | Yrd Mat Min Machines Accessed 10 | . 10 . Terminals 7 | . 7 . Fabricators . | . . . Repair Stations 1 | . 1 . Recycling Units 2 | . 2 . Scanalyzers . | . . . Garrison Access . | . . . Total Hacks 29 | . 29 . Successful 17 | . 17 . Failed 12 | . 12 . Catastrophic . | . . . Database Lockouts . | . . . Manual 25 | . 25 . Terminals 22 | . 22 . Fabricators . | . . . Repair Stations 3 | . 3 . Recycling Units 4 | . 4 . Scanalyzers . | . . . Garrison Access . | . . . Terminal Hacks 3 | . 3 . Prototype ID Bank 1 | . 1 . Unreport Threat 1 | . 1 . Locate Traps 1 | . 1 . Fabricator Hacks . | . . . Repair Station Hacks 2 | . 2 . Scan Component 1 | . 1 . Repair 1 | . 1 . Recycling Unit Hacks . | . . . Scanalyzer . | . . . Garrison Access Hacks . | . . . Unauthorized Hacks 12 | . 12 . Terminals 10 | . 10 . Botnet 5 | . 5 . Operators 1 | . 1 . Skim 4 | . 4 . Fabricators . | . . . Repair Stations 1 | . 1 . Mechanics 1 | . 1 . Recycling Units 1 | . 1 . Reject 1 | . 1 . Scanalyzers . | . . . Garrison Access . | . . . Data Cores Recovered . | . . . Used . | . . . Hacking Detections 10 | . 10 . Full Trace Events . | . . . Feedback Events . | . . . Feedback Blocked . | . . . Robot Schematics Acquired . | . . . Robots Built . | . . . Authchips . | . . . Time . | . . . Total Robot Build Rating . | . . . Part Schematics Acquired . | . . . Parts Built . | . . . Authchips . | . . . Time . | . . . Total Part Build Rating . | . . . Parts Repaired 1 | . 1 . Time 26 | . 26 . Parts Recycled . | . . . Recycled Matter . | . . . Retrieved Matter . | . . . Retrieved Components . | . . . Parts Scanalyzed . | . . . Part Schematics Acquired . | . . . Parts Damaged . | . . . Bothacking | -11 -10 -10 ------------ Run | Yrd Mat Min Used RIF Installer . | . . . Robots Hacked . | . . . Non-combat . | . . . Combat . | . . . Robot Hacks Applied . | . . . Relay Couplers Released . | . . . Fabnet Peak Effective % . | . . . Robots Rewired . | . . . Allies Hacked . | . . . Hacks Repelled . | . . . Allies | -11 -10 -10 -------- Run | Yrd Mat Min Total Allies . | . . . Largest Group . | . . . Highest-Rated Group . | . . . Highest-Rated Ally . | . . . Total Orders . | . . . Ally Attacks . | . . . Total Damage . | . . . Kills . | . . . Allies Corrupted . | . . . Allies Melted . | . . . Intel | -11 -10 -10 ------- Run | Yrd Mat Min Active Infowar (turns) 1151 | 37 789 325 Seismic 1151 | 37 789 325 Robot Analysis Total . | . . . Derelict Logs Recovered 1 | . . 1 Drone Launches . | . . . Drone Recoveries . | . . . Exploration | -11 -10 -10 ------------- Run | Yrd Mat Min Turns Passed 1519 | 89 1080 350 Spaces Moved 734 | 50 510 174 Core 8 | 4 . 4 Treads 655 | . 485 170 Legs 71 | 46 25 . Wheels . | . . . Hover . | . . . Flight . | . . . Fastest Speed 50 | 50 120 160 Average Speed 156 | 117 158 161 Slowest Speed 300 | 120 160 300 Overloaded Moves . | . . . Propulsion Burnouts . | . . . Robots Hopped . | . . . Potential Cave-ins . | . . . Cave-ins Triggered . | . . . Exploration Rate (%) 44 | 5 89 39 Regions Visited 2 Branch Regions 1 Pre-discovered Areas . | . . . Known Exits Taken . | . . . Unknown Exits Taken 2 | 1 1 . Scrap Searched 1 | . . 1 Spaces Dug . | . . . Terrain Destroyed . | . . . Melee . | . . . Projectile . | . . . AOE . | . . . Terrain Rammed . | . . . Walls Destroyed . | . . . Machines Disabled . | . . . Actions | -11 -10 -10 --------- Run | Yrd Mat Min Total 1013 | 68 715 230 Wait 168 | . 130 38 Move 732 | 49 509 174 Hop . | . . . Pick Up 19 | 7 9 3 Fast Attach 9 | 7 2 . Attach 1 | . 1 . Detach 1 | . 1 . Swap 16 | 1 11 4 Drop 17 | . 14 3 Fire 50 | 4 38 8 Melee . | . . . Ram . | . . . Kick . | . . . Crush . | . . . Escape Stasis . | . . . Rewire . | . . . Trap . | . . . Miscellaneous . | . . . Route ------- -11/Scrapyard -10/Materials (discovered 3 exits: [*Mat] / [*Min x2]) -10/Mines (discovered 2 exits: [*Mat x2]) History --------- Turn | Location | Event 13 | -11/Scrapyard | Discovered new exit (range 14) 90 | -11/Scrapyard | Entered Materials 317 | -10/Materials | Build established: Mutant 433 | -10/Materials | Discovered new exit (range 15) 881 | -10/Materials | Discovered new exit (range 4) 1087 | -10/Materials | Repaired Assault Rifle 1105 | -10/Materials | Discovered new exit (range 14) 1170 | -10/Materials | Entered Mines 1223 | -10/Mines | Found a Scrap Suit stashed away for nefarious purposes 1314 | -10/Mines | Learned Materials emergency access door positions 1410 | -10/Mines | Discovered new exit (range 10) 1445 | -10/Mines | Received a Rocket Launcher from a helpful Derelict 1479 | -10/Mines | Discovered new exit (range 14) 1485 | -10/Mines | Assembled infested the area 1510 | -10/Mines | Core integrity fell below 50% 1519 | -10/Mines | Core integrity fell below 20% 1520 | -10/Mines | Destroyed by D-53 Grenadier with Mini Grenade Launcher Last Messages --------------- 01516_ The unstable cave ceiling collapses. 01516_ U-05 Engineer builds a Wall. 01517_ HV Slug penetrates as-52913. 01517_ as-52913 suffers critical hit (Destroy). 01517_ as-52913 destroyed. 01517_ HV Slug penetrates as-27128. 01517_ as-27128 suffers critical hit (Destroy). 01517_ HV Slug penetrates as-27128. 01517_ as-27128 destroyed. 01517_ HV Slug penetrates Wall. 01518_ The unstable cave ceiling collapses. 01518_ U-05 Engineer lays Concrete. 01519_ The unstable cave ceiling collapses. 01519_ U-05 Engineer lays Concrete. 01519_ HV Slug penetrates as-38570. 01519_ as-38570 suffers critical hit (Destroy). 01519_ as-38570 destroyed. 01519_ HV Slug penetrates Earth. 01520_ The unstable cave ceiling collapses. 01520_ U-05 Engineer lays Concrete. Map ----- +----------------------------------------------------+ | ???????????????????????????????????????? | | ???????????????????????????????????????? | | ???????????????????????????????????????? | | ???????????????????????????????????????? | | ???????????????????????????????????????? | | ???????????????????????????????????????? | | ???????????????????????????????????????? | | ???????????????????????????????????????? | | ???????????????????????????????????????? | | ???????????????????????????????????????? | | ???????????????????????????????????????? | | ???????????????????????????????????????? | | ???????????????????????????????????????? | | ??????????????????????###??????????????? | | ?????????????????????? ???????#??????? | | ?????????????????????? #????? #??????? | | ??????????????????????# #????? #??????? | | ??????????????????????#| #????% #??????? | | ??????????????????????#% #?###% #??????? | | ??????????????????????# ## ##?????? | | ????????????????????###u< % #?????? | | ????????????????????# r #?????? | | ???????####?????????# a #??????? | | ??????## ##????????# = #??????? | | ?????## #???????## %= #??????? | | ?????# #????#### @ a #??????? | | ????## #???## # =% ##??????? | | ???## #?### =##???????? | | ???# #### d d #????????? | | ???# ### #????????? | | ???# " # #????????? | | ???# "% # # #????????? | | ??## ### # #????????? | | ??# ### ## # #? #????????? | | ??# ## ####? #????????? | | ??## ### # ####?????#????????? | | ???# ###### ##????????????????? | | ???## ### ####?????????????????? | | ????# ####### < ##??????????????????? | | ????# ?#????##### ##?????????????????? | | ????# ? #???????# ##????????????????? | | ????### #???????# ###### #????????? | | ??????# #???????# #????????? | | ??????# #???????# #????????? | | ??????# #???????## #############??????? | | ??????# #????????# ##??????### ##?????? | | ??????# #????????# #????#### ##????? | | ?????## ########## ###### [! #????? | | ???### ##???? | | ??## #?### ######### ! ##??? | +----------------------------------------------------+ Best States ------------- Heat Dissipation 25 Energy Generation 14 Energy Capacity 250 Matter Stores 300 Matter Capacity 300 Sight Range 16 Terrain Scan Density 10 Core Shielding 20 Evasion (%) 55 Recoil Reduction 2 Item Schematics ----------------- None Robot Schematics ------------------ None Fabricated ------------ Nothing Repaired ---------- Assault Rifle | 65% | -10/Materials Alien Tech Used ----------------- None Achievements -------------- None Challenges ------------ None Game ------ Seed ChromaticBlanketSlayer Manual? 0 Play Time 00:20:51 Cumulative 76.0 hours Start 2025.07.12 @ 07:53:58 End 2025.07.12 @ 08:13:44 Sessions 1 Manual Loads 0 Difficulty Rogue Special Mode None Game No. 81 Rogue 81 Adventurer 0 Explorer 0 Win Type - Total 0 Types 0/0/0/0/0/0/0/0/0/0 Lore% 41 Gallery% 39 Achievement% 30 Wizard Run 0 Options --------- Layout 1 ASCII 0 Keyboard 0 Movement Mouse Keybinds 0 Fullscreen 2 Font 48/Smallcaps Map View 50x35 Zoom Use 0% Tactical HUD 1 Map Filters NONE Filters NONE Steam 0 RUN: d8ada063-494a-436d-a90c-b88c2fe70c76